[Event "*** Titled Tuesday Blitz"]
[Site "Chess.com"]
[Date "2021.03.30"]
[Round "4"]
[White "Susal_De_Silva"]
[Black "slowdgehammer"]
[Result "1/2-1/2"]
[WhiteElo "2671"]
[BlackElo "2371"]
[TimeControl "180+1"]
[EndTime "10:40:26 PDT"]
[Termination "Game drawn by stalemate"]

1. e4 {[%clk 0:03:00.9]} 1... c5 {[%clk 0:02:59.5]} 2. Nf3 {[%clk 0:03:01.3]}
2... e6 {[%clk 0:03:00.1]} 3. d4 {[%clk 0:03:01.5]} 3... cxd4 {[%clk 0:03:01]}
4. Nxd4 {[%clk 0:03:02.4]} 4... Nf6 {[%clk 0:03:01.1]} 5. Nc3 {[%clk 0:03:02.6]}
5... Nc6 {[%clk 0:03:01.8]} 6. Be2 {[%clk 0:03:02.9]} 6... Bb4 {[%clk
0:03:01.7]} 7. O-O {[%clk 0:03:03.1]} 7... Bxc3 {[%clk 0:03:01.7]} 8. Nxc6
{[%clk 0:03:03.1]} 8... dxc6 {[%clk 0:02:58.2]} 9. Qxd8+ {[%clk 0:03:02.6]} 9...
Kxd8 {[%clk 0:02:58.7]} 10. bxc3 {[%clk 0:03:03]} 10... Nxe4 {[%clk 0:02:58.9]}
11. Bd3 {[%clk 0:03:03.3]} 11... Nf6 {[%clk 0:02:57.5]} 12. c4 {[%clk
0:03:03.6]} 12... c5 {[%clk 0:02:45.7]} 13. a4 {[%clk 0:03:02.3]} 13... Ke7
{[%clk 0:02:31.9]} 14. a5 {[%clk 0:02:54.4]} 14... Bd7 {[%clk 0:02:29.7]} 15.
Be3 {[%clk 0:02:49.9]} 15... b6 {[%clk 0:02:29.2]} 16. Rfb1 {[%clk 0:02:48.6]}
16... Rhb8 {[%clk 0:02:15.9]} 17. f3 {[%clk 0:02:37.3]} 17... Bc6 {[%clk
0:01:39.1]} 18. axb6 {[%clk 0:02:33.3]} 18... axb6 {[%clk 0:01:35]} 19. Rxa8
{[%clk 0:02:34.2]} 19... Bxa8 {[%clk 0:01:21.1]} 20. Bxc5+ {[%clk 0:02:33.4]}
20... Ke8 {[%clk 0:01:16.3]} 21. Bxb6 {[%clk 0:02:31.3]} 21... Nd7 {[%clk
0:01:11.8]} 22. c5 {[%clk 0:02:31.4]} 22... Nxc5 {[%clk 0:01:09.4]} 23. Bb5+
{[%clk 0:02:21.9]} 23... Nd7 {[%clk 0:01:06]} 24. Ba5 {[%clk 0:01:56.8]} 24...
Rc8 {[%clk 0:00:56.1]} 25. c4 {[%clk 0:01:50.2]} 25... Bc6 {[%clk 0:00:56.2]}
26. Be1 {[%clk 0:01:42.6]} 26... Ne5 {[%clk 0:00:52.5]} 27. Bf2 {[%clk
0:01:37.8]} 27... Bd7 {[%clk 0:00:50]} 28. c5 {[%clk 0:01:35.9]} 28... Bxb5
{[%clk 0:00:39.9]} 29. Rxb5 {[%clk 0:01:36.8]} 29... Nd3 {[%clk 0:00:40]} 30.
Be3 {[%clk 0:01:35.3]} 30... f5 {[%clk 0:00:36.2]} 31. g3 {[%clk 0:01:34.6]}
31... e5 {[%clk 0:00:36]} 32. Kf1 {[%clk 0:01:34.8]} 32... Kf7 {[%clk 0:00:28]}
33. Ke2 {[%clk 0:01:33.8]} 33... e4 {[%clk 0:00:28.7]} 34. fxe4 {[%clk
0:01:26.5]} 34... fxe4 {[%clk 0:00:29.6]} 35. Rb7+ {[%clk 0:01:24]} 35... Kg6
{[%clk 0:00:29.1]} 36. Bd4 {[%clk 0:01:20.7]} 36... Nxc5 {[%clk 0:00:26.6]} 37.
Rxg7+ {[%clk 0:01:21.2]} 37... Kh6 {[%clk 0:00:26.8]} 38. Rg4 {[%clk 0:01:11]}
38... Kh5 {[%clk 0:00:20.6]} 39. h3 {[%clk 0:01:00.3]} 39... Ne6 {[%clk
0:00:19.8]} 40. Be3 {[%clk 0:01:00.7]} 40... Rc2+ {[%clk 0:00:16.1]} 41. Kf1
{[%clk 0:01:01.3]} 41... h6 {[%clk 0:00:13.8]} 42. Rxe4 {[%clk 0:00:59.9]} 42...
Ng5 {[%clk 0:00:14.2]} 43. Re5 {[%clk 0:00:53.7]} 43... Kg6 {[%clk 0:00:14]} 44.
h4 {[%clk 0:00:50]} 44... Nf3 {[%clk 0:00:14.3]} 45. Re6+ {[%clk 0:00:49.7]}
45... Kf5 {[%clk 0:00:13.3]} 46. Rxh6 {[%clk 0:00:47.1]} 46... Kg4 {[%clk
0:00:10.2]} 47. Bf2 {[%clk 0:00:32.2]} 47... Nd2+ {[%clk 0:00:07.9]} 48. Kg1
{[%clk 0:00:22.9]} 48... Nf3+ {[%clk 0:00:08.1]} 49. Kg2 {[%clk 0:00:21.2]}
49... Ne1+ {[%clk 0:00:07.9]} 50. Kf1 {[%clk 0:00:19.2]} 50... Nd3 {[%clk
0:00:08.5]} 51. Rf6 {[%clk 0:00:18.4]} 51... Nxf2 {[%clk 0:00:07.2]} 52. Rxf2
{[%clk 0:00:19.3]} 52... Rc1+ {[%clk 0:00:07.5]} 53. Kg2 {[%clk 0:00:19.7]}
53... Rc3 {[%clk 0:00:08.4]} 54. Rf4+ {[%clk 0:00:19.3]} 54... Kh5 {[%clk
0:00:09.1]} 55. Kh3 {[%clk 0:00:19.7]} 55... Rd3 {[%clk 0:00:09.6]} 56. Rf5+
{[%clk 0:00:20]} 56... Kg6 {[%clk 0:00:09.5]} 57. Ra5 {[%clk 0:00:20.9]} 57...
Kh6 {[%clk 0:00:09.7]} 58. h5 {[%clk 0:00:20.9]} 58... Rc3 {[%clk 0:00:10.2]}
59. Kh4 {[%clk 0:00:21]} 59... Rc4+ {[%clk 0:00:10.8]} 60. g4 {[%clk 0:00:21.6]}
60... Rb4 {[%clk 0:00:11.5]} 61. Ra6+ {[%clk 0:00:19]} 61... Kg7 {[%clk
0:00:12]} 62. h6+ {[%clk 0:00:19.3]} 62... Kh7 {[%clk 0:00:11.6]} 63. Kh5 {[%clk
0:00:19.7]} 63... Rb5+ {[%clk 0:00:12.3]} 64. g5 {[%clk 0:00:20.4]} 64... Rc5
{[%clk 0:00:13.2]} 65. Ra7+ {[%clk 0:00:20.7]} 65... Kh8 {[%clk 0:00:13.3]} 66.
h7 {[%clk 0:00:20.5]} 66... Rxg5+ {[%clk 0:00:09.3]} 67. Kxg5 {[%clk 0:00:16.9]}
1/2-1/2

[Event "*** Titled Tuesday Blitz"]
[Site "Chess.com"]
[Date "2021.03.30"]
[Round "4"]
[White "Shuvalov"]
[Black "Jungle_Jaguar"]
[Result "1-0"]
[WhiteElo "2421"]
[BlackElo "2593"]
[TimeControl "180+1"]
[EndTime "10:40:30 PDT"]
[Termination "Shuvalov won by checkmate"]

1. Nf3 {[%clk 0:02:57.7]} 1... Nf6 {[%clk 0:02:59.7]} 2. c4 {[%clk 0:02:57.5]}
2... c6 {[%clk 0:02:59.6]} 3. g3 {[%clk 0:02:57.3]} 3... d5 {[%clk 0:02:59.5]}
4. Bg2 {[%clk 0:02:57.7]} 4... Bf5 {[%clk 0:03:00.2]} 5. cxd5 {[%clk 0:02:57.1]}
5... cxd5 {[%clk 0:02:56.6]} 6. Qb3 {[%clk 0:02:57.1]} 6... Qc7 {[%clk
0:02:53.4]} 7. Nc3 {[%clk 0:02:56.6]} 7... a6 {[%clk 0:02:44.9]} 8. Nxd5 {[%clk
0:02:43.7]} 8... Nxd5 {[%clk 0:02:45]} 9. Qxd5 {[%clk 0:02:44.6]} 9... e6 {[%clk
0:02:45.7]} 10. Qb3 {[%clk 0:02:30.8]} 10... Nd7 {[%clk 0:02:45.5]} 11. d4
{[%clk 0:02:24]} 11... Be7 {[%clk 0:02:27.8]} 12. Bf4 {[%clk 0:02:19.2]} 12...
Qa5+ {[%clk 0:02:25.8]} 13. Bd2 {[%clk 0:02:17.6]} 13... Qd8 {[%clk 0:02:26.4]}
14. O-O {[%clk 0:02:10.6]} 14... O-O {[%clk 0:02:26.5]} 15. Rac1 {[%clk
0:02:08.5]} 15... Be4 {[%clk 0:02:20]} 16. Bf4 {[%clk 0:02:01]} 16... Bd5 {[%clk
0:02:15.7]} 17. Qd3 {[%clk 0:01:53.3]} 17... Qb6 {[%clk 0:02:13.4]} 18. b3
{[%clk 0:01:46.2]} 18... Ba3 {[%clk 0:02:12.3]} 19. Rc2 {[%clk 0:01:44]} 19...
Nf6 {[%clk 0:02:11.9]} 20. Ne5 {[%clk 0:01:41.1]} 20... Rfd8 {[%clk 0:02:04.9]}
21. e4 {[%clk 0:01:34.8]} 21... Bxe4 {[%clk 0:02:00]} 22. Bxe4 {[%clk
0:01:33.8]} 22... Rxd4 {[%clk 0:02:00.6]} 23. Be3 {[%clk 0:01:16.7]} 23... Rxd3
{[%clk 0:01:55.3]} 24. Bxb6 {[%clk 0:01:16.7]} 24... Rd6 {[%clk 0:01:55.8]} 25.
Nc4 {[%clk 0:01:12.4]} 25... Nxe4 {[%clk 0:01:51.1]} 26. Nxd6 {[%clk 0:01:12.6]}
26... Bxd6 {[%clk 0:01:49.6]} 27. Rd1 {[%clk 0:01:10.4]} 27... Be7 {[%clk
0:01:46.5]} 28. Rd7 {[%clk 0:01:08.1]} 28... Bf6 {[%clk 0:01:44]} 29. Rdc7
{[%clk 0:01:06.6]} 29... Nd6 {[%clk 0:01:41.3]} 30. Rd7 {[%clk 0:01:04.9]} 30...
Ne4 {[%clk 0:01:34.6]} 31. Rxb7 {[%clk 0:01:04.3]} 31... h5 {[%clk 0:01:31.3]}
32. Ra7 {[%clk 0:00:56.3]} 32... Rb8 {[%clk 0:01:29.4]} 33. Be3 {[%clk
0:00:54.5]} 33... h4 {[%clk 0:01:21.7]} 34. Kg2 {[%clk 0:00:54.4]} 34... g5
{[%clk 0:01:15.5]} 35. g4 {[%clk 0:00:48.8]} 35... Rb4 {[%clk 0:01:03.1]} 36.
Rxa6 {[%clk 0:00:45.8]} 36... Nc3 {[%clk 0:01:02.4]} 37. h3 {[%clk 0:00:43.3]}
37... Kg7 {[%clk 0:01:02.7]} 38. Bxg5 {[%clk 0:00:38.3]} 38... Nd5 {[%clk
0:00:54]} 39. Bxf6+ {[%clk 0:00:38]} 39... Nxf6 {[%clk 0:00:54.9]} 40. Rac6
{[%clk 0:00:35.9]} 40... Nd5 {[%clk 0:00:53.8]} 41. R6c4 {[%clk 0:00:35.3]}
41... Rb6 {[%clk 0:00:53.3]} 42. b4 {[%clk 0:00:31.5]} 42... e5 {[%clk
0:00:50.3]} 43. Rb2 {[%clk 0:00:30.3]} 43... Nf4+ {[%clk 0:00:49.8]} 44. Kh2
{[%clk 0:00:29.7]} 44... Nd3 {[%clk 0:00:49.2]} 45. Rb3 {[%clk 0:00:27.5]} 45...
Nxf2 {[%clk 0:00:46.5]} 46. b5 {[%clk 0:00:27.6]} 46... e4 {[%clk 0:00:43.4]}
47. Rc6 {[%clk 0:00:26.1]} 47... Rb8 {[%clk 0:00:38.3]} 48. b6 {[%clk
0:00:21.9]} 48... Nd3 {[%clk 0:00:19.3]} 49. b7 {[%clk 0:00:19.1]} 49... e3
{[%clk 0:00:18.2]} 50. Rxd3 {[%clk 0:00:18]} 50... Rxb7 {[%clk 0:00:18.3]} 51.
Rxe3 {[%clk 0:00:17.9]} 51... Rb2+ {[%clk 0:00:18.9]} 52. Kg1 {[%clk 0:00:17.8]}
52... Rxa2 {[%clk 0:00:19.7]} 53. Rf3 {[%clk 0:00:18.1]} 53... Ra1+ {[%clk
0:00:19.3]} 54. Kg2 {[%clk 0:00:18.4]} 54... Ra2+ {[%clk 0:00:19.7]} 55. Rf2
{[%clk 0:00:18.9]} 55... Ra3 {[%clk 0:00:20.6]} 56. Rcf6 {[%clk 0:00:19]} 56...
Rg3+ {[%clk 0:00:20.8]} 57. Kh2 {[%clk 0:00:19.5]} 57... Re3 {[%clk 0:00:17.4]}
58. Rxf7+ {[%clk 0:00:19.5]} 58... Kg6 {[%clk 0:00:18.3]} 59. R7f3 {[%clk
0:00:19.7]} 59... Re6 {[%clk 0:00:16.1]} 60. Rf5 {[%clk 0:00:19.9]} 60... Re3
{[%clk 0:00:15.4]} 61. Rh5 {[%clk 0:00:19.8]} 61... Rg3 {[%clk 0:00:14.8]} 62.
Rxh4 {[%clk 0:00:19.6]} 62... Rc3 {[%clk 0:00:14]} 63. Rh5 {[%clk 0:00:19.9]}
63... Rc4 {[%clk 0:00:14.3]} 64. Rhf5 {[%clk 0:00:20]} 64... Rc6 {[%clk
0:00:14]} 65. h4 {[%clk 0:00:20.1]} 65... Rc4 {[%clk 0:00:13.7]} 66. h5+ {[%clk
0:00:20.3]} 66... Kh6 {[%clk 0:00:13.8]} 67. Kh3 {[%clk 0:00:20.6]} 67... Rc3+
{[%clk 0:00:14]} 68. R2f3 {[%clk 0:00:20.8]} 68... Rc1 {[%clk 0:00:14.3]} 69.
Rf6+ {[%clk 0:00:20.6]} 69... Kg5 {[%clk 0:00:14.7]} 70. Rg6# {[%clk 0:00:20.5]}
1-0

[Event "*** Titled Tuesday Blitz"]
[Site "Chess.com"]
[Date "2021.03.30"]
[Round "4"]
[White "biveklama"]
[Black "PotapovaM"]
[Result "0-1"]
[WhiteElo "2319"]
[BlackElo "2496"]
[TimeControl "180+1"]
[EndTime "10:40:32 PDT"]
[Termination "PotapovaM won on time"]

1. e4 {[%clk 0:03:00.9]} 1... c5 {[%clk 0:02:59]} 2. Nf3 {[%clk 0:02:54.4]} 2...
d6 {[%clk 0:02:59.5]} 3. Bb5+ {[%clk 0:02:53.5]} 3... Nd7 {[%clk 0:02:59]} 4.
O-O {[%clk 0:02:52.6]} 4... a6 {[%clk 0:02:58.7]} 5. Be2 {[%clk 0:02:52]} 5...
Ngf6 {[%clk 0:02:57.3]} 6. d3 {[%clk 0:02:51.1]} 6... g6 {[%clk 0:02:57]} 7. c3
{[%clk 0:02:50]} 7... Bg7 {[%clk 0:02:57.6]} 8. Bf4 {[%clk 0:02:46.7]} 8... O-O
{[%clk 0:02:57.9]} 9. Qc1 {[%clk 0:02:46.8]} 9... b5 {[%clk 0:02:58.3]} 10. Bh6
{[%clk 0:02:46.7]} 10... Bb7 {[%clk 0:02:59]} 11. Bxg7 {[%clk 0:02:47]} 11...
Kxg7 {[%clk 0:02:59.9]} 12. h3 {[%clk 0:02:40.5]} 12... e5 {[%clk 0:03:00.1]}
13. Nh2 {[%clk 0:02:35.4]} 13... d5 {[%clk 0:02:58.7]} 14. exd5 {[%clk
0:02:29.7]} 14... Nxd5 {[%clk 0:02:59.6]} 15. Bf3 {[%clk 0:02:24.6]} 15... Qc7
{[%clk 0:02:56.2]} 16. Bxd5 {[%clk 0:02:21.6]} 16... Bxd5 {[%clk 0:02:54.7]} 17.
Ng4 {[%clk 0:02:22.5]} 17... f5 {[%clk 0:02:47.4]} 18. Qh6+ {[%clk 0:02:22]}
18... Kg8 {[%clk 0:02:47.7]} 19. Ne3 {[%clk 0:02:09]} 19... Bb7 {[%clk
0:02:47.8]} 20. Nd2 {[%clk 0:01:56.5]} 20... Nf6 {[%clk 0:02:47.5]} 21. Rad1
{[%clk 0:01:46.3]} 21... Rfd8 {[%clk 0:02:44.2]} 22. Nb3 {[%clk 0:01:40.4]}
22... Rac8 {[%clk 0:02:44.8]} 23. f4 {[%clk 0:01:32.6]} 23... e4 {[%clk
0:02:33.6]} 24. d4 {[%clk 0:01:29.5]} 24... c4 {[%clk 0:02:21.1]} 25. Nc5 {[%clk
0:01:29.2]} 25... Qf7 {[%clk 0:02:05.6]} 26. Qh4 {[%clk 0:01:15.9]} 26... Rd6
{[%clk 0:01:53.2]} 27. Rde1 {[%clk 0:01:00.1]} 27... b4 {[%clk 0:01:51.9]} 28.
g4 {[%clk 0:00:51.5]} 28... fxg4 {[%clk 0:01:47.5]} 29. hxg4 {[%clk 0:00:50.9]}
29... Nd5 {[%clk 0:01:45.6]} 30. Nxd5 {[%clk 0:00:45.6]} 30... Bxd5 {[%clk
0:01:42.1]} 31. Nxe4 {[%clk 0:00:39.8]} 31... Bxe4 {[%clk 0:01:31]} 32. Rxe4
{[%clk 0:00:40.7]} 32... Rf6 {[%clk 0:01:27.1]} 33. Rfe1 {[%clk 0:00:33.6]}
33... g5 {[%clk 0:00:35]} 34. Qxg5+ {[%clk 0:00:27.4]} 34... Rg6 {[%clk
0:00:34.9]} 35. Qh4 {[%clk 0:00:21]} 35... Qd7 {[%clk 0:00:30.7]} 36. f5 {[%clk
0:00:16.5]} 36... Qxf5 {[%clk 0:00:16.6]} 37. Re8+ {[%clk 0:00:16.8]} 37... Rxe8
{[%clk 0:00:17.2]} 38. Rxe8+ {[%clk 0:00:16.7]} 38... Kg7 {[%clk 0:00:17.9]} 39.
Qe7+ {[%clk 0:00:10.8]} 39... Kh6 {[%clk 0:00:18.2]} 40. Qh4+ {[%clk 0:00:10.5]}
40... Kg7 {[%clk 0:00:17.6]} 41. Qe7+ {[%clk 0:00:08.2]} 41... Kh6 {[%clk
0:00:16]} 42. Qe3+ {[%clk 0:00:08.9]} 42... Qg5 {[%clk 0:00:14.2]} 43. Qxg5+
{[%clk 0:00:09.2]} 43... Kxg5 {[%clk 0:00:12.7]} 44. cxb4 {[%clk 0:00:07.3]}
44... Rd6 {[%clk 0:00:08.3]} 45. Re5+ {[%clk 0:00:06.7]} 45... Kxg4 {[%clk
0:00:07.8]} 46. d5 {[%clk 0:00:07.3]} 46... h5 {[%clk 0:00:08.1]} 47. Re4+
{[%clk 0:00:06]} 47... Kg3 {[%clk 0:00:07.4]} 48. Rxc4 {[%clk 0:00:06.9]} 48...
Rxd5 {[%clk 0:00:07.1]} 49. Rc3+ {[%clk 0:00:07.6]} 49... Kg4 {[%clk 0:00:07.3]}
50. a4 {[%clk 0:00:05.5]} 50... Rd2 {[%clk 0:00:05.7]} 51. b3 {[%clk 0:00:04.7]}
51... Rd5 {[%clk 0:00:04.4]} 52. Rc5 {[%clk 0:00:03.2]} 52... Rd1+ {[%clk
0:00:04.3]} 53. Kf2 {[%clk 0:00:03]} 53... Rd2+ {[%clk 0:00:05.2]} 54. Ke3
{[%clk 0:00:03.1]} 54... Rb2 {[%clk 0:00:05.6]} 55. Rc3 {[%clk 0:00:02.5]} 55...
h4 {[%clk 0:00:05.8]} 56. b5 {[%clk 0:00:02.2]} 56... axb5 {[%clk 0:00:06.4]}
57. axb5 {[%clk 0:00:03.1]} 57... h3 {[%clk 0:00:06.5]} 58. b6 {[%clk
0:00:02.3]} 58... h2 {[%clk 0:00:07]} 59. Rc4+ {[%clk 0:00:02.7]} 59... Kg3
{[%clk 0:00:06.8]} 0-1

[Event "*** Titled Tuesday Blitz"]
[Site "Chess.com"]
[Date "2021.03.30"]
[Round "4"]
[White "SilviusTiberius"]
[Black "mishanick"]
[Result "0-1"]
[WhiteElo "2559"]
[BlackElo "2966"]
[TimeControl "180+1"]
[EndTime "10:40:37 PDT"]
[Termination "mishanick won by resignation"]

1. e4 {[%clk 0:03:00.9]} 1... c5 {[%clk 0:03:00]} 2. Nf3 {[%clk 0:03:00.6]} 2...
d6 {[%clk 0:03:00.6]} 3. d4 {[%clk 0:03:01.1]} 3... cxd4 {[%clk 0:03:01.5]} 4.
Nxd4 {[%clk 0:03:01.7]} 4... Nf6 {[%clk 0:03:02]} 5. Nc3 {[%clk 0:03:02.2]} 5...
a6 {[%clk 0:03:02.7]} 6. f3 {[%clk 0:03:02.2]} 6... e5 {[%clk 0:03:02.8]} 7. Nb3
{[%clk 0:03:02.6]} 7... Be6 {[%clk 0:03:03.2]} 8. Be3 {[%clk 0:03:02.6]} 8...
Nbd7 {[%clk 0:03:02.7]} 9. g4 {[%clk 0:03:02]} 9... Be7 {[%clk 0:03:00.2]} 10.
Qd2 {[%clk 0:02:58.2]} 10... b5 {[%clk 0:03:00.5]} 11. g5 {[%clk 0:02:52.9]}
11... Nh5 {[%clk 0:03:00.4]} 12. a4 {[%clk 0:02:51.4]} 12... b4 {[%clk
0:02:58.2]} 13. Nd5 {[%clk 0:02:50.9]} 13... Bxd5 {[%clk 0:02:58.5]} 14. Qxd5
{[%clk 0:02:50.4]} 14... O-O {[%clk 0:02:48.4]} 15. Qd2 {[%clk 0:02:48.2]} 15...
a5 {[%clk 0:02:26.5]} 16. Rg1 {[%clk 0:02:32.2]} 16... Nb6 {[%clk 0:02:23.6]}
17. Qf2 {[%clk 0:02:28.1]} 17... Nd7 {[%clk 0:02:11.8]} 18. O-O-O {[%clk
0:02:21.8]} 18... Qc7 {[%clk 0:02:11.3]} 19. Bb5 {[%clk 0:02:18.3]} 19... Rfc8
{[%clk 0:02:08.2]} 20. Kb1 {[%clk 0:02:16.8]} 20... Nf8 {[%clk 0:02:06.9]} 21.
Bb6 {[%clk 0:02:02.6]} 21... Qb8 {[%clk 0:02:07.2]} 22. Bxa5 {[%clk 0:01:56.5]}
22... Ne6 {[%clk 0:02:05.8]} 23. Bxb4 {[%clk 0:01:53.4]} 23... Rxa4 {[%clk
0:01:55.8]} 24. Bxa4 {[%clk 0:01:49.3]} 24... Qxb4 {[%clk 0:01:56.7]} 25. Bd7
{[%clk 0:01:48.7]} 25... Ra8 {[%clk 0:01:56.4]} 26. Bxe6 {[%clk 0:01:43.6]}
26... fxe6 {[%clk 0:01:57.3]} 27. h4 {[%clk 0:01:20.8]} 27... Nf4 {[%clk
0:01:55.6]} 28. Qe3 {[%clk 0:01:11.5]} 28... Qa4 {[%clk 0:01:51.9]} 29. Rgf1
{[%clk 0:00:42.7]} 29... Qa2+ {[%clk 0:01:50.6]} 30. Kc1 {[%clk 0:00:42.5]}
30... Rc8 {[%clk 0:01:51.2]} 31. Rf2 {[%clk 0:00:39.3]} 31... Rc6 {[%clk
0:01:29.4]} 32. Rfd2 {[%clk 0:00:28.6]} 32... Ra6 {[%clk 0:01:29.1]} 33. Rd3
{[%clk 0:00:16.9]} 33... d5 {[%clk 0:01:18.7]} 34. exd5 {[%clk 0:00:16.5]} 34...
Bb4 {[%clk 0:01:19.4]} 35. c4 {[%clk 0:00:14.4]} 35... Ba3 {[%clk 0:00:55.8]}
36. bxa3 {[%clk 0:00:12.8]} 36... Qxa3+ {[%clk 0:00:49.2]} 37. Kd2 {[%clk
0:00:12.6]} 37... Qb2+ {[%clk 0:00:49]} 38. Ke1 {[%clk 0:00:10.6]} 38... Ng2+
{[%clk 0:00:49.1]} 39. Kf1 {[%clk 0:00:11.1]} 39... Nxe3+ {[%clk 0:00:49.1]} 40.
Rxe3 {[%clk 0:00:12]} 40... exd5 {[%clk 0:00:48]} 41. cxd5 {[%clk 0:00:12.2]}
41... Ra2 {[%clk 0:00:31.7]} 42. Rd2 {[%clk 0:00:10.7]} 42... Qb1+ {[%clk
0:00:31]} 43. Ke2 {[%clk 0:00:11.1]} 43... Rxd2+ {[%clk 0:00:20.4]} 44. Nxd2
{[%clk 0:00:12]} 44... Qb5+ {[%clk 0:00:19.7]} 45. Rd3 {[%clk 0:00:12.4]} 45...
Kf7 {[%clk 0:00:20]} 46. d6 {[%clk 0:00:12.9]} 46... Ke8 {[%clk 0:00:19.5]} 47.
d7+ {[%clk 0:00:13.2]} 47... Kd8 {[%clk 0:00:20.1]} 48. Ne4 {[%clk 0:00:13.9]}
48... Qb2+ {[%clk 0:00:20.4]} 49. Ke3 {[%clk 0:00:14.4]} 49... Qc1+ {[%clk
0:00:20.7]} 50. Rd2 {[%clk 0:00:15]} 50... Qe1+ {[%clk 0:00:20.2]} 51. Kd3
{[%clk 0:00:14.5]} 51... Kxd7 {[%clk 0:00:20.1]} 52. Kc4+ {[%clk 0:00:15.4]}
52... Ke6 {[%clk 0:00:20]} 53. Rd6+ {[%clk 0:00:15.9]} 53... Kf5 {[%clk
0:00:16.7]} 54. Kd5 {[%clk 0:00:12.9]} 54... Qd1+ {[%clk 0:00:16.2]} 55. Kc6
{[%clk 0:00:13.3]} 55... Qa4+ {[%clk 0:00:16.2]} 56. Kc7 {[%clk 0:00:13.1]}
56... Kf4 {[%clk 0:00:13.1]} 57. Nc5 {[%clk 0:00:12.8]} 57... Qa5+ {[%clk
0:00:11.5]} 58. Kc6 {[%clk 0:00:13.2]} 58... Kxf3 {[%clk 0:00:11.7]} 59. Rd3+
{[%clk 0:00:12.1]} 59... Kg4 {[%clk 0:00:11.4]} 60. Rd5 {[%clk 0:00:12.2]} 60...
Kxh4 {[%clk 0:00:10.9]} 61. Rxe5 {[%clk 0:00:12.2]} 61... Qa8+ {[%clk
0:00:11.5]} 62. Kd6 {[%clk 0:00:12.4]} 62... Qf8+ {[%clk 0:00:11.9]} 63. Kd5
{[%clk 0:00:12.3]} 63... Qf7+ {[%clk 0:00:11.6]} 64. Kd4 {[%clk 0:00:12.3]}
64... Kg4 {[%clk 0:00:11.5]} 65. Ne4 {[%clk 0:00:12.7]} 65... Qa7+ {[%clk
0:00:11.4]} 66. Rc5 {[%clk 0:00:11.8]} 66... Kf4 {[%clk 0:00:11.3]} 67. Kd5
{[%clk 0:00:11.8]} 67... Qf7+ {[%clk 0:00:10.7]} 68. Kd4 {[%clk 0:00:11.1]}
68... Qd7+ {[%clk 0:00:11]} 69. Rd5 {[%clk 0:00:11]} 69... Qa4+ {[%clk
0:00:11.7]} 70. Kc5 {[%clk 0:00:11.3]} 70... Qxe4 {[%clk 0:00:12.6]} 71. g6
{[%clk 0:00:12]} 71... Qxg6 {[%clk 0:00:12.6]} 72. Rd4+ {[%clk 0:00:11.9]} 72...
Qe4 {[%clk 0:00:12.8]} 0-1

[Event "*** Titled Tuesday Blitz"]
[Site "Chess.com"]
[Date "2021.03.30"]
[Round "4"]
[White "karinachess1"]
[Black "serhanberat_ozdemir"]
[Result "0-1"]
[WhiteElo "2489"]
[BlackElo "2682"]
[TimeControl "180+1"]
[EndTime "10:40:38 PDT"]
[Termination "serhanberat_ozdemir won on time"]

1. c4 {[%clk 0:03:00.9]} 1... Nf6 {[%clk 0:03:00.3]} 2. Nf3 {[%clk 0:03:00.4]}
2... g6 {[%clk 0:03:00.7]} 3. g3 {[%clk 0:02:59]} 3... Bg7 {[%clk 0:03:01.2]} 4.
Bg2 {[%clk 0:02:59.6]} 4... O-O {[%clk 0:03:02.1]} 5. O-O {[%clk 0:02:59.8]}
5... d6 {[%clk 0:03:03]} 6. d4 {[%clk 0:03:00]} 6... c6 {[%clk 0:03:03.9]} 7.
Nc3 {[%clk 0:02:58.9]} 7... Qa5 {[%clk 0:03:04.5]} 8. e4 {[%clk 0:02:33.3]} 8...
Qh5 {[%clk 0:03:01.7]} 9. Ng5 {[%clk 0:02:24.1]} 9... Qxd1 {[%clk 0:03:01.6]}
10. Rxd1 {[%clk 0:02:25]} 10... e5 {[%clk 0:03:01.8]} 11. Nf3 {[%clk 0:02:18.6]}
11... Re8 {[%clk 0:02:59.5]} 12. dxe5 {[%clk 0:02:16.7]} 12... dxe5 {[%clk
0:03:00.4]} 13. h3 {[%clk 0:02:14.9]} 13... Be6 {[%clk 0:02:52.9]} 14. b3 {[%clk
0:02:14.8]} 14... Nbd7 {[%clk 0:02:51.2]} 15. Be3 {[%clk 0:02:08.2]} 15... h6
{[%clk 0:02:37.2]} 16. Rd2 {[%clk 0:01:28.6]} 16... Bf8 {[%clk 0:02:36.6]} 17.
a3 {[%clk 0:01:14]} 17... Kg7 {[%clk 0:02:15.7]} 18. Rdd1 {[%clk 0:01:06.6]}
18... a5 {[%clk 0:02:04]} 19. Bf1 {[%clk 0:00:55.6]} 19... Bc5 {[%clk
0:01:52.5]} 20. Bxc5 {[%clk 0:00:44.2]} 20... Nxc5 {[%clk 0:01:53.4]} 21. b4
{[%clk 0:00:42]} 21... axb4 {[%clk 0:01:45.8]} 22. axb4 {[%clk 0:00:42.9]} 22...
Ncxe4 {[%clk 0:01:39.9]} 23. Nxe4 {[%clk 0:00:41.5]} 23... Nxe4 {[%clk
0:01:40.8]} 24. Rxa8 {[%clk 0:00:41.9]} 24... Rxa8 {[%clk 0:01:40.5]} 25. Nxe5
{[%clk 0:00:42.3]} 25... Ra2 {[%clk 0:01:33.6]} 26. Nd3 {[%clk 0:00:14.8]} 26...
Bxc4 {[%clk 0:01:32.3]} 27. Nc1 {[%clk 0:00:14.8]} 27... Rc2 {[%clk 0:01:24.8]}
28. Bd3 {[%clk 0:00:15]} 28... Bxd3 {[%clk 0:01:20.5]} 29. Nxd3 {[%clk
0:00:15.9]} 29... Nc3 {[%clk 0:01:16.9]} 30. Re1 {[%clk 0:00:14.3]} 30... Re2
{[%clk 0:01:13.4]} 31. Ra1 {[%clk 0:00:12.3]} 31... Rd2 {[%clk 0:01:09.9]} 32.
Nc5 {[%clk 0:00:10]} 32... b6 {[%clk 0:01:01.5]} 33. Nb3 {[%clk 0:00:10.3]}
33... Rb2 {[%clk 0:01:01.2]} 34. Nd4 {[%clk 0:00:10.6]} 34... c5 {[%clk
0:00:49]} 35. bxc5 {[%clk 0:00:11.5]} 35... bxc5 {[%clk 0:00:49.8]} 36. Nc6
{[%clk 0:00:12.1]} 36... Ne4 {[%clk 0:00:46.4]} 37. Rf1 {[%clk 0:00:08.9]} 37...
c4 {[%clk 0:00:44.1]} 38. Nd4 {[%clk 0:00:05.5]} 38... c3 {[%clk 0:00:38.7]} 39.
Rc1 {[%clk 0:00:05.7]} 39... Rxf2 {[%clk 0:00:13.2]} 40. Re1 {[%clk 0:00:05.5]}
40... Rd2 {[%clk 0:00:06.9]} 41. Rxe4 {[%clk 0:00:05.7]} 41... c2 {[%clk
0:00:07.5]} 42. Nxc2 {[%clk 0:00:05.8]} 42... Rxc2 {[%clk 0:00:08.4]} 43. h4
{[%clk 0:00:05.7]} 43... Rc3 {[%clk 0:00:08.3]} 44. Kg2 {[%clk 0:00:04.8]} 44...
h5 {[%clk 0:00:08.9]} 45. Ra4 {[%clk 0:00:05]} 45... Rc6 {[%clk 0:00:09.3]} 46.
Kh3 {[%clk 0:00:05.4]} 46... Re6 {[%clk 0:00:10.2]} 47. Rc4 {[%clk 0:00:05.5]}
47... Kf6 {[%clk 0:00:11.1]} 48. Rb4 {[%clk 0:00:06]} 48... Re5 {[%clk
0:00:11.9]} 49. Rf4+ {[%clk 0:00:06.3]} 49... Rf5 {[%clk 0:00:12.2]} 50. Rb4
{[%clk 0:00:07.2]} 50... Rd5 {[%clk 0:00:11.9]} 51. Rb6+ {[%clk 0:00:07.6]}
51... Kf5 {[%clk 0:00:12.1]} 52. Rb7 {[%clk 0:00:08.2]} 52... f6 {[%clk
0:00:12]} 53. Rb2 {[%clk 0:00:08.8]} 53... Ke5 {[%clk 0:00:07.4]} 54. Re2+
{[%clk 0:00:08.9]} 54... Kd6 {[%clk 0:00:07.9]} 55. Rf2 {[%clk 0:00:09.4]} 55...
Ke6 {[%clk 0:00:07.7]} 56. Re2+ {[%clk 0:00:09.6]} 56... Re5 {[%clk 0:00:08.3]}
57. Rf2 {[%clk 0:00:09.9]} 57... Re3 {[%clk 0:00:08]} 58. Rf4 {[%clk 0:00:09.8]}
58... Rb3 {[%clk 0:00:07.6]} 59. Rc4 {[%clk 0:00:09.7]} 59... Ke5 {[%clk
0:00:06.7]} 60. Rc5+ {[%clk 0:00:10]} 60... Ke4 {[%clk 0:00:06.8]} 61. Rc4+
{[%clk 0:00:10]} 61... Kf3 {[%clk 0:00:06.4]} 62. Rf4+ {[%clk 0:00:10.2]} 62...
Ke3 {[%clk 0:00:05.9]} 63. Rxf6 {[%clk 0:00:11.1]} 63... Rb1 {[%clk 0:00:05]}
64. Rxg6 {[%clk 0:00:10.4]} 64... Kf2 {[%clk 0:00:05.7]} 65. Rf6+ {[%clk
0:00:09.6]} 65... Kg1 {[%clk 0:00:06.2]} 66. g4 {[%clk 0:00:09.1]} 66... Rb3+
{[%clk 0:00:06.6]} 0-1